Cogmind - Beta 16 @@@ ROGUE MODE // 2026.01.22 @ 12:19:58 Player: luckinvolved Result: Destroyed self with Rocket Launcher Performance ------------- Evolutions (4) 2000 Regions Visited (6) 1200 Robots Destroyed (25) 125 Value Destroyed (882) 882 Prototype IDs (8) 160 Alien Tech Used (0) 0 Bonus (490) 490 TOTAL SCORE: 4857 Bonus ------- Entered DSFs 500 Friendly Fire -10 Cogmind --------- Core Integrity 0/850 Matter 279/300 Energy 85/100 System Corruption 13% Temperature Cool (0) Movement Core (100) Ox1 Location -6/Factory Parts ------- > --- POWER (2) -------- (None) > --- PROPULSION (4) --- (None) > --- UTILITY (6) ------ (None) > --- WEAPON (3) ------- Rocket Launcher > --- INVENTORY (5) ---- Authchip [Device] Authchip [Device] Authchip [Processor] Authchip [Armor] Peak State ------------ > --- POWER ------------ Fission-Deuterium Core > --- PROPULSION ------- Treaded Armored Exoskeleton > --- UTILITY ---------- Armored Scrap Engine Active Sensor Suite Advanced Hacking Suite > --- WEAPON ----------- Kinetic Gauss Construct/G > --- INVENTORY -------- Authchip [Device] Authchip [Device] Authchip [Processor] Authchip [Armor] Rocket Launcher [Rating: 81] Favorites ----------- Power Improved Ion Engine Engine Improved Ion Engine Power Core Constructs Propulsion Light Treads Treads Light Treads Wheel Wheel Utility Large Storage Unit Device Armored Scrap Engine Storage Large Storage Unit Processor Signal Interpreter Hackware Advanced Hacking Suite Protection Hardened Light Armor Plating Weapon Autogun Energy Gun Constructs Energy Cannon Constructs Ballistic Gun Autogun Launcher Grenade Launcher Slashing Weapon Mining Claw Build | -11 -10 -10 -9 -7 -7 -6 ------- Run | Yrd Mat Sub Rec Fac DSF Fac Slots Evolved 8 | . . . . 6 . 2 Power 1 | . . . . . . 1 Propulsion 2 | . . . . 2 . . Utility 4 | . . . . 3 . 1 Weapon 1 | . . . . 1 . . Parts Attached 27 | 6 . 3 13 . 2 3 Power 2 | 1 . . 1 . . . Engine 2 | 1 . . 1 . . . Core . | . . . . . . . Reactor . | . . . . . . . Propulsion 4 | 2 . 2 . . . . Treads 2 | 2 . . . . . . Leg . | . . . . . . . Wheel 2 | . . 2 . . . . Hover . | . . . . . . . Flight . | . . . . . . . Utility 11 | 1 . . 6 . 2 2 Device 4 | . . . 2 . 1 1 Storage 2 | 1 . . 1 . . . Processor 1 | . . . 1 . . . Hackware 2 | . . . . . 1 1 Protection 2 | . . . 2 . . . Artifact . | . . . . . . . Weapon 10 | 2 . 1 6 . . 1 Energy Gun . | . . . . . . . Energy Cannon . | . . . . . . . Ballistic Gun 7 | 2 . . 5 . . . Ballistic Cannon . | . . . . . . . Launcher 2 | . . 1 . . . 1 Special Weapon . | . . . . . . . Impact Weapon . | . . . . . . . Slashing Weapon 1 | . . . 1 . . . Piercing Weapon . | . . . . . . . Special Melee Weapon . | . . . . . . . Unidentified Prototypes 2 | . . . 1 . . 1 Corrupted Parts 1 | . . . . . . 1 System Corruption 4 | . . . . . . 4 Parts Lost 24 | . . . 3 . 10 11 Power 5 | . . . 1 . 2 2 Propulsion 6 | . . . . . 3 3 Utility 7 | . . . 1 . 1 5 Weapon 6 | . . . 1 . 4 1 Highest Loss Streak 10 | . . . 2 . 9 10 To Critical Strikes 2 | . . . . . 1 1 Average Backups 9 | 2 5 6 10 5 7 7 Power 1 | . 1 1 1 . . . Propulsion 1 | 1 2 2 2 . . . Utility 3 | . . 1 3 3 5 5 Weapon 2 | . 1 2 3 2 2 1 Tool/Special . | . . . . . . . Unused Backups 22 | . . . 13 . . 9 Power 3 | . . . 3 . . . Propulsion 4 | . . . 4 . . . Utility 13 | . . . 4 . . 9 Weapon 2 | . . . 2 . . . Tool/Special . | . . . . . . . Average Slot Usage (%) 76 | . 85 85 90 42 48 34 Engine 10 | . 14 14 13 7 5 . Treads 17 | . 28 2 21 . 3 5 Leg 1 | . . . 1 7 2 . Wheel 1 | . . 25 1 . . . Device 5 | . . . 4 7 10 9 Storage 8 | . 14 14 9 . 3 1 Processor 2 | . . . 3 . . . Hackware 1 | . . . . . 1 7 Protection 3 | . . . 5 . . . Energy Gun 1 | . . . 1 7 5 . Ballistic Gun 18 | . 28 24 22 7 5 4 Slashing Weapon 1 | . . . 2 . . . Peak Build Rating 81 | 6 6 6 33 36 50 81 Average Rating 25 | 4 6 6 16 35 41 60 On Entrance 17 | . 6 6 6 33 36 38 Avg Prop Armor Cover (%) . | . . . . . . . Naked Turns 23 | . . . . . . 23 Heaviest Build 39 | 13 13 15 38 15 39 25 Greatest Support 84 | 40 40 26 40 35 54 84 Greatest Overweight (x) 3 | . . . 3 . 1 . Average Overweight (x) . | . . . . . . . Largest Inventory Capacity 15 | 8 8 8 15 5 15 15 Average Capacity 10 | 6 8 8 11 5 10 8 Most Carried 15 | 4 6 7 15 5 14 15 Average Carried 9 | 2 5 6 10 5 8 7 Final Capacity 15 | 8 8 8 5 5 15 5 Final Carried 14 | 4 6 7 5 5 14 4 Scrap Engine Consumption 84 | . . . 43 . 26 15 Constructs Created 10 | . . . 4 1 3 2 Constructs Modified 17 | . . . 7 . 3 7 Class Distribution -------------------- 39% | Mutant 27% | Commander-Mutant 18% | Commander-Construct 9% | Construct 4% | Hacker-Mutant Dominant Class ---------------- Mutant | -10/Materials Mutant | -10/Subcaves Commander-Mutant | -9/Recycling Commander-Construct | -7/Factory Construct | -7/DSF Mutant | -6/Factory Resources | -11 -10 -10 -9 -7 -7 -6 ----------- Run | Yrd Mat Sub Rec Fac DSF Fac Matter Collected 1060 | 222 38 10 562 . 106 122 Remotely . | . . . . . . . Salvage Created 1211 | . . 33 764 . 267 147 Parts 70 | . . 4 37 . 16 13 Haulers Intercepted . | . . . . . . . Recyclers Shooed 8 | . . . 7 . . 1 Parts Field Recycled . | . . . . . . . Retrieved Matter . | . . . . . . . Parts Self-Destructed 10 | . . 10 . . . . Prevented . | . . . . . . . Parts Restored . | . . . . . . . Kills | -11 -10 -10 -9 -7 -7 -6 ------- Run | Yrd Mat Sub Rec Fac DSF Fac Combat Hostiles Destroyed 18 | . . 2 7 . 6 3 Guns 13 | . . 2 7 . 2 2 Cannons 3 | . . . . . 3 . AOE 1 | . . . . . . 1 Classes Destroyed 9 | . . 2 4 . 3 . Builder 1 | . . . 1 . . . Recycler 4 | . . . 4 . . . Turret 2 | . . 2 . . . . Swarmer 5 | . . 2 . . 2 1 Sentry 5 | . . . 4 . . 1 Specialist 2 | . . . . . 2 . Hunter 2 | . . . . . 1 1 Heavy 1 | . . . . . 1 . Scrapper 3 | . . . 3 . . . Best Kill Streak 4 | . . 2 4 . 2 1 Combat Bots Only 3 | . . 2 3 . 2 1 Max Kills in Single Turn 1 | . . 1 1 . 1 1 Gunslinging . | . . . . . . . Exploded 1 | . . . . . . 1 Melee . | . . . . . . . Uniques/NPCs Destroyed . | . . . . . . . Combat | -11 -10 -10 -9 -7 -7 -6 -------- Run | Yrd Mat Sub Rec Fac DSF Fac Hostile Shots Fired 641 | . . 65 30 . 293 253 Missed 192 | . . 26 6 . 83 77 Hits 449 | . . 39 24 . 210 176 Melee 5 | . . . . . . 5 Projectile 444 | . . 39 24 . 210 171 Critical Strikes 12 | . . . 1 . 3 8 Damage Taken 6150 | . . 276 404 . 2437 3033 Core 1348 | . . 49 . . 429 870 Absorbed by Shields 199 | . . . 48 . 151 . Regen/Repaired (Parts) 657 | . . . 55 . 283 319 Core Remaining (%) 72 | 100 . . 80 . 38 . Volleys Fired 99 | . . 16 33 . 26 24 Largest 3 | . . 2 2 . 3 1 Hottest 138 | . . 50 46 . 138 33 Shots Fired 175 | . . 32 65 . 54 24 Gun 153 | . . 25 65 . 40 23 Cannon 14 | . . . . . 14 . Launcher 8 | . . 7 . . . 1 Special . | . . . . . . . Kinetic 136 | . . 25 65 . 23 23 Thermal . | . . . . . . . Explosive 8 | . . 7 . . . 1 Electromagnetic 31 | . . . . . 31 . Robot Hit Streak 12 | . . 6 12 . 10 12 Robot Miss Streak 6 | . . 6 3 . 3 4 Penetration Max . | . . . . . . . Secondary Targets 1 | . . . 1 . . . Max Gunslinging Chain 1 | . . . 1 . . . Shots Hit Robots 117 | . . 14 43 . 43 17 Core Hits 49 | . . 8 21 . 13 7 Critical Kills . | . . . . . . . Critical Parts Destroyed . | . . . . . . . Critical Strikes . | . . . . . . . Melee Attacks 7 | . . . 7 . . . Impact . | . . . . . . . Slashing 7 | . . . 7 . . . Piercing . | . . . . . . . Sneak Attacks . | . . . . . . . Combat Hostiles . | . . . . . . . Follow-up Attacks . | . . . . . . . Damage Inflicted 2111 | . . 254 693 . 695 469 Guns 1653 | . . 138 693 . 480 342 Cannons 215 | . . . . . 215 . Explosions 243 | . . 116 . . . 127 Melee . | . . . . . . . Ramming . | . . . . . . . Kinetic 1419 | . . 138 693 . 246 342 Thermal . | . . . . . . . Explosive 243 | . . 116 . . . 127 Electromagnetic 449 | . . . . . 449 . Impact . | . . . . . . . Slashing . | . . . . . . . Piercing . | . . . . . . . Highest Corruption 13 | . . . . . . 13 Average Corruption 4 | . . . . . . 4 Corruption Purged . | . . . . . . . Corruption Blocked . | . . . . . . . Effects 14 | . . . . . . 14 Message Errors 3 | . . . . . . 3 Matter Fused 3 | . . . . . . 3 Heat Flow Errors 2 | . . . . . . 2 Energy Discharges 1 | . . . . . . 1 Data Loss (minor) 2 | . . . . . . 2 Data Loss (major) 3 | . . . . . . 3 Overload Shots . | . . . . . . . Overflow Damage . | . . . . . . . Projectiles . | . . . . . . . Explosions . | . . . . . . . Melee . | . . . . . . . Knockbacks . | . . . . . . . Impact . | . . . . . . . Kinetic . | . . . . . . . Secondary . | . . . . . . . Self-Inflicted Damage 61 | . . 13 . . . 48 Shots 2 | . . 1 . . . 1 Rammed . | . . . . . . . Targets Rammed . | . . . . . . . Kicked . | . . . . . . . Crushed . | . . . . . . . Highest Temperature 274 | . . 6 74 . 13 274 Average Temperature 55 | . . 6 28 . 9 117 Received Heat Transfer 1474 | . . 138 154 . 231 951 Siege Activations . | . . . . . . . Martial Activations . | . . . . . . . Shielding Activations . | . . . . . . . Robots Disrupted . | . . . . . . . Combat Hostiles . | . . . . . . . Robots Corrupted 1 | . . . . . 1 . Combat Hostiles 1 | . . . . . 1 . Parts Fried . | . . . . . . . Impact Corruptions . | . . . . . . . Robots Melted . | . . . . . . . Combat Hostiles . | . . . . . . . Parts Melted 1 | . . . 1 . . . Heat Transferred . | . . . . . . . Parts Sabotaged . | . . . . . . . Parts Stolen . | . . . . . . . Parts Stripped . | . . . . . . . Power Chain Reactions . | . . . . . . . Alert | -11 -10 -10 -9 -7 -7 -6 ------- Run | Yrd Mat Sub Rec Fac DSF Fac Maximum Alert Level 1 | . . . . 1 1 . Low Security (%) 93 | 100 100 . 100 . . 100 Level 1 6 | . . . . 100 100 . Level 2 . | . . . . . . . Level 3 . | . . . . . . . Level 4 . | . . . . . . . Level 5 . | . . . . . . . High Security . | . . . . . . . Max Security . | . . . . . . . Peak Influence 357 | . . . 166 357 317 147 Initial 352 | . . . 74 352 249 147 Average 51 | . . . 39 352 276 37 Influence Increases 1292 | . . 185 346 355 203 203 Destroy 0b10 Robot/C 340 | . . 80 80 . 120 60 Destroy 0b10 Robot/NC 25 | . . . 25 . . . Destroy Leader 40 | . . . . . 20 20 Allied During Kill 3 | . . . . . 3 . Successful Hack 39 | . . . 26 5 . 8 Select Force Hacks 210 | . . . 210 . . . Disable Machine 15 | . . . . . 15 . Destroy Structure 5 | . . . 5 . . . Advance Influence 350 | . . . . 350 . . Lose Combat Pursuer 165 | . . 105 . . 45 15 Active Sensor Use 100 | . . . . . . 100 Influence Decreases 1257 | . . 30 495 4 278 450 Entered New Map 328 | . . . 81 4 108 135 Time Decay 626 | . . 30 359 . . 237 Lost Part 193 | . . . 15 . 100 78 Lost Ally 110 | . . . 40 . 70 . Squads Dispatched 6 | . 1 . . . 2 3 Investigation 2 | . . . . . . 2 Extermination 1 | . . . . . . 1 Reinforcement 3 | . 1 . . . 2 . Assault . | . . . . . . . Garrison . | . . . . . . . Intercept . | . . . . . . . Searches Triggered . | . . . . . . . Construction Impeded . | . . . . . . . Haulers Reinforced . | . . . . . . . Active Scanning Responses 1 | . . . . . . 1 Cargo Convoy Interrupts . | . . . . . . . Stealth | -11 -10 -10 -9 -7 -7 -6 --------- Run | Yrd Mat Sub Rec Fac DSF Fac Distress Signals 5 | . 2 . 1 . . 2 Communications Jammed . | . . . . . . . Distress Signals . | . . . . . . . Times Spotted 52 | . . 9 7 . 16 20 Peak Tracking Total 17 | . . 4 4 . 7 17 Tactical Retreats 5 | . . 2 . . 2 1 Traps | -11 -10 -10 -9 -7 -7 -6 ------- Run | Yrd Mat Sub Rec Fac DSF Fac Traps Triggered . | . . . . . . . Indirectly . | . . . . . . . Trap Hack Attempts . | . . . . . . . Triggered . | . . . . . . . Disarmed . | . . . . . . . Reprogrammed . | . . . . . . . Reused . | . . . . . . . Traps Extracted . | . . . . . . . Installed . | . . . . . . . Triggered . | . . . . . . . Machines | -11 -10 -10 -9 -7 -7 -6 ---------- Run | Yrd Mat Sub Rec Fac DSF Fac Machines Disabled 5 | . . 4 . . 1 . Max in Single Turn 2 | . . 2 . . 1 . Machines Repaired . | . . . . . . . Machines Dismantled . | . . . . . . . Machines Sabotaged . | . . . . . . . Overloaded Fab Kills . | . . . . . . . Hacking | -11 -10 -10 -9 -7 -7 -6 --------- Run | Yrd Mat Sub Rec Fac DSF Fac Machines Accessed 20 | . . . 14 1 . 5 Terminals 9 | . . . 5 1 . 3 Fabricators . | . . . . . . . Repair Stations . | . . . . . . . Recycling Units 8 | . . . 7 . . 1 Scanalyzers . | . . . . . . . Garrison Access 1 | . . . . . . 1 Total Hacks 59 | . . . 47 2 . 10 Successful 45 | . . . 41 1 . 3 Failed 14 | . . . 6 1 . 7 Catastrophic 1 | . . . . . . 1 Database Lockouts . | . . . . . . . Manual 27 | . . . 21 . . 6 Terminals 21 | . . . 13 2 . 6 Fabricators . | . . . . . . . Repair Stations . | . . . . . . . Recycling Units 10 | . . . 8 . . 2 Scanalyzers . | . . . . . . . Garrison Access 2 | . . . . . . 2 Terminal Hacks 31 | . . . 29 1 . 1 Record 24 | . . . 24 . . . Open DSF 1 | . . . . 1 . . Branch Access Points 1 | . . . 1 . . . Terminal Index 2 | . . . 1 . . 1 Zone Layout 1 | . . . 1 . . . Release Object 2 | . . . 2 . . . Fabricator Hacks . | . . . . . . . Repair Station Hacks . | . . . . . . . Recycling Unit Hacks 1 | . . . 1 . . . Retrieve Components 1 | . . . 1 . . . Scanalyzer . | . . . . . . . Garrison Access Hacks . | . . . . . . . Unauthorized Hacks 13 | . . . 11 . . 2 Terminals 6 | . . . 4 . . 2 Botnet 6 | . . . 4 . . 2 Fabricators . | . . . . . . . Repair Stations . | . . . . . . . Recycling Units 7 | . . . 7 . . . Tunnel 7 | . . . 7 . . . Scanalyzers . | . . . . . . . Garrison Access . | . . . . . . . Data Cores Recovered . | . . . . . . . Used . | . . . . . . . Hacking Detections 11 | . . . 5 1 . 5 Full Trace Events 1 | . . . . . . 1 Feedback Events . | . . . . . . . Feedback Blocked . | . . . . . . . Robot Schematics Acquired . | . . . . . . . Robots Built . | . . . . . . . Authchips . | . . . . . . . Time . | . . . . . . . Total Robot Build Rating . | . . . . . . . Part Schematics Acquired . | . . . . . . . Parts Built . | . . . . . . . Authchips . | . . . . . . . Time . | . . . . . . . Total Part Build Rating . | . . . . . . . Part Studies Acquired . | . . . . . . . Parts Repaired . | . . . . . . . Time . | . . . . . . . Parts Recycled . | . . . . . . . Recycled Matter . | . . . . . . . Retrieved Matter . | . . . . . . . Retrieved Components 6 | . . . 6 . . . Parts Scanalyzed . | . . . . . . . Part Schematics Acquired . | . . . . . . . Parts Damaged . | . . . . . . . Bothacking | -11 -10 -10 -9 -7 -7 -6 ------------ Run | Yrd Mat Sub Rec Fac DSF Fac Used RIF Installer . | . . . . . . . Robots Hacked . | . . . . . . . Non-combat . | . . . . . . . Combat . | . . . . . . . Robot Hacks Applied . | . . . . . . . Relay Couplers Released . | . . . . . . . Fabnet Peak Effective % . | . . . . . . . Robots Rewired 7 | . . . 7 . . . Allies Hacked . | . . . . . . . Hacks Repelled . | . . . . . . . Allies | -11 -10 -10 -9 -7 -7 -6 -------- Run | Yrd Mat Sub Rec Fac DSF Fac Total Allies 7 | . . . 7 . . . Largest Group 7 | . . . 7 5 5 . Highest-Rated Group 99 | . . . 99 79 79 . Highest-Rated Ally 27 | . . . 27 27 27 . Total Orders 1 | . . . 1 . . . DROP 1 | . . . 1 . . . Ally Attacks 20 | . . . 13 . 7 . Total Damage 528 | . . . 422 . 106 . Kills 2 | . . . 2 . . . Allies Corrupted . | . . . . . . . Allies Melted . | . . . . . . . Intel | -11 -10 -10 -9 -7 -7 -6 ------- Run | Yrd Mat Sub Rec Fac DSF Fac Active Infowar (turns) 612 | . . . 164 . . 448 Sensors 164 | . . . 164 . . . A.S.S. 448 | . . . . . . 448 Robot Analysis Total . | . . . . . . . Derelict Logs Recovered 1 | . . 1 . . . . Drone Launches . | . . . . . . . Drone Recoveries . | . . . . . . . Exploration | -11 -10 -10 -9 -7 -7 -6 ------------- Run | Yrd Mat Sub Rec Fac DSF Fac Turns Passed 4206 | 86 180 159 2726 16 234 805 Spaces Moved 2397 | 50 92 80 1611 15 131 418 Core 52 | 6 . . 1 . . 45 Treads 1801 | 44 92 . 1214 . 78 373 Legs 368 | . . . 300 15 53 . Wheels 176 | . . 80 96 . . . Hover . | . . . . . . . Flight . | . . . . . . . Fastest Speed 50 | 50 160 90 90 108 108 50 Average Speed 147 | 146 160 90 145 108 112 175 Slowest Speed 218 | 160 160 90 200 108 184 218 Overloaded Moves . | . . . . . . . Propulsion Burnouts . | . . . . . . . Robots Hopped . | . . . . . . . Potential Cave-ins . | . . . . . . . Cave-ins Triggered . | . . . . . . . Exploration Rate (%) 33 | 4 23 10 99 1 81 14 Regions Visited 6 Branch Regions 2 Pre-discovered Areas 7 | . . . 7 . . . Known Exits Taken 2 | . . . 1 1 . . Unknown Exits Taken 3 | 1 1 1 . . . . Scrap Searched . | . . . . . . . Spaces Dug 5 | . . . 5 . . . Terrain Destroyed 24 | . . 19 5 . . . Melee 5 | . . . 5 . . . Projectile . | . . . . . . . AOE 19 | . . 19 . . . . Terrain Rammed . | . . . . . . . Walls Destroyed . | . . . . . . . Machines Disabled . | . . . . . . . Actions | -11 -10 -10 -9 -7 -7 -6 --------- Run | Yrd Mat Sub Rec Fac DSF Fac Total 2915 | 60 125 135 1941 14 175 465 Wait 222 | 1 32 36 132 . 6 15 Move 2391 | 49 91 79 1610 14 130 418 Hop . | . . . . . . . Pick Up 44 | 4 2 1 25 . 8 4 Fast Attach 11 | 6 . . 3 . 2 . Attach 7 | . . . 3 . 1 3 Detach 6 | . . . 5 . . 1 Swap 14 | . . 3 11 . . . Drop 24 | . . . 24 . . . Fire 99 | . . 16 33 . 26 24 Melee 7 | . . . 7 . . . Ram . | . . . . . . . Kick . | . . . . . . . Crush . | . . . . . . . Escape Stasis . | . . . . . . . Rewire 90 | . . . 88 . 2 . Trap . | . . . . . . . Miscellaneous . | . . . . . . . Route ------- -11/Scrapyard -10/Materials (discovered 2 exits: [*Mat] / [*Sub]) -10/Subcaves -9/Recycling -7/Factory -7/DSF -6/Factory History --------- Turn | Location | Event 2 | -11/Scrapyard | Met Revision 17 10 | -11/Scrapyard | Discovered new exit (range 13) 87 | -11/Scrapyard | Entered Materials 88 | -10/Materials | Met a group of wandering Federalists 160 | -10/Materials | Discovered new exit (range 15) 221 | -10/Materials | Discovered new exit (range 9) 267 | -10/Materials | Entered Subcaves 267 | -10/Subcaves | Accompanied by 1 ally 268 | -10/Subcaves | Continued accompanying wandering Federalists (4) 268 | -10/Subcaves | Approached by a straggling Scientist 311 | -10/Subcaves | Build established: Mutant 379 | -10/Subcaves | Discovered new exit (range 15) 412 | -10/Subcaves | Lost 4 allies 426 | -10/Subcaves | Entered Recycling 427 | -9/Recycling | Met a Zionite searching for Scraptown 1043 | -9/Recycling | Discovered new exit (range 7) 1614 | -9/Recycling | Build established: Commander-Mutant 1737 | -9/Recycling | Identified exit to Factory 2263 | -9/Recycling | Scanned before Scraplab entrance 2300 | -9/Recycling | Entered Scraplab 2313 | -9/Recycling | Discovered new exit (range 3) 2314 | -9/Recycling | Identified exit to Scraptown 2353 | -9/Recycling | Angered Scraplab inhabitants 2355 | -9/Recycling | Found Prototype Device 2355 | -9/Recycling | Identified Scrap Engine 2769 | -9/Recycling | Build established: Commander-Construct 3152 | -9/Recycling | Entered Factory 3152 | -7/Factory | Accompanied by 5 allies 3152 | -7/Factory | Evolved 6 slots: Propulsion x2, Utility x3, Weapon x1 3167 | -7/Factory | Identified exit to DSF 3168 | -7/Factory | Entered DSF 3168 | -7/DSF | Accompanied by 5 allies 3226 | -7/DSF | Additional patrols routed to DSF 3272 | -7/DSF | Found Corrupted Prototype Device 3291 | -7/DSF | Lost 5 allies 3389 | -7/DSF | Core integrity fell below 50% 3393 | -7/DSF | Discovered new exit (range 7) 3395 | -7/DSF | Lost 9 parts (2p3n1u3w) 3402 | -7/DSF | Entered Factory 3402 | -6/Factory | Evolved 2 slots: Power x1, Utility x1 3671 | -6/Factory | Identified Active Sensor Suite 4091 | -6/Factory | Build established: Construct 4162 | -6/Factory | System corruption reached 10% 4172 | -6/Factory | Core integrity fell below 50% 4190 | -6/Factory | Core integrity fell below 20% 4207 | -6/Factory | Destroyed self with Rocket Launcher Last Messages --------------- 04146_ System corrupted: Substantial component data lost. 04150_ Treaded Armored Exoskeleton destroyed. 04150_ Treaded Armored Exoskeleton core remains intact and functional. 04153_ W-25 Informer sends out distress signal. 04154_ Fabricator disabled. 04161_ Active Sensor Suite destroyed. 04161_ System corrupted by crushing effect (+4). 04176_ Critical hit (Burn: +37). 04176_ Treaded Armored Exoskeleton destroyed. 04176_ Treaded Armored Exoskeleton core remains intact and functional. 04176_ Critical hit (Burn: +37). 04178_ System corrupted: Substantial component data lost. 04179_ W-25 Informer sends out distress signal. 04182_ Fusion Modulator explodes. 04182_ Pressure Siphon disabled. 04182_ P-60 Hacker destroyed. 04182_ G-50 Soldier destroyed. 04183_ Treaded Armored Exoskeleton destroyed. 04195_ WL=V3EZ#6Y,G QRCNKGCQR>Q2AMZLKP 04199_ S-27 Virus destroyed. Map ----- +----------------------------------------------------+ | ??????????????????????????????????# "= %%" # | | ??????????????????#######+#########"" %%" # | | ????????????????? %%" | | ????????????????? %"" | | ???????????????? | | ???????????????? | | ???????????????? | | ???????????????????#### ###/################## | | ??????????????????????# ?# #??# | | ??????????????????????# ??# #??# | | ??????????????????????# # #??# | | ??????????????????????# # #??# | | ??????????????????????# # #??# | | ??????????????????????# # # + | | ??????????????????????# # #### | | ??????????????????????# # "" #??# | | ??????????????????????# # " #??# | | ????????????????????### # "F #??# | | ????????????????????? # "" #??# | | ??????????????????????# # #??# | | ??????????????????????# ########"#####??###### | | ???????################ #??????# #???? #???? | | ???????# # ######## ### #???? | | ???????# # [ s #???? | | ???????# +=%s %= ### #???? | | ???????# # =@ #???????????? | | ???????# # #???????????? | | ???????# + ##########???????????? | | ???????##################/#######????????????????? | | ???????????????????# u #????????????????? | | ???????????????????# #????????????????? | | ???????????????????# "" "" #????????????????? | | ???????????????????# "" "" #???????????????? | | ???????????????????# """ """ #??????????????? | | ???????????????????# """ """ #??????????????? | | ???????????????????# """ """ #????????????????? | | ???????????????????# ? ?? #????????????????? | | ???????????????????#?? ???? #????????????????? | | ???????????????????????? ?????#????????????????? | | ???????????????????????? ??????????????????????? | | ???????????????????????? ??????????????????????? | | ????????????????????????###??????????????????????? | | ?????????????????????????????????????????????????? | | ?????????????????????????????????????????????????? | | ?????????????????????????????????????????????????# | | ?????????????????????????????????????????????????# | | ?????????????????????????????????????????????????# | | ?????????????????????????????????????????????????# | | ?????????????????????????????????????????????????# | | ?????????????????????????????????????????????????? | +----------------------------------------------------+ Best States ------------- Heat Dissipation 37 Energy Generation 45 Energy Capacity 265 Matter Stores 300 Matter Capacity 300 Sight Range 16 Robot Scan Range 20 Terrain Scan Density 10 Armor Coverage 150 Evasion (%) 55 Recoil Reduction 3 Offensive Hacking 28 Authchip Count 6 Item Schematics ----------------- None Robot Schematics ------------------ None Fabricated ------------ Nothing Repaired ---------- Nothing Studied --------- None Alien Tech Used ----------------- None Achievements -------------- Not So Scrappy Scrappetite Strength In Numbers Window Shopping You Again You May Approach The Wall Challenges ------------ None Game ------ Seed AmuletDrainedChargecaster Manual? 0 Play Time 00:46:05 Cumulative 124.3 hours Start 2026.01.22 @ 11:15:53 End 2026.01.22 @ 12:19:58 Sessions 1 Manual Loads 0 Difficulty Rogue Special Mode None Game No. 160 Rogue 155 Adventurer 5 Explorer 0 Win Type - Total 3 Types 2/0/0/1/0/0/0/0/0/0 Lore% 37 Gallery% 57 Achievement% 39 Wizard Run 0 Options --------- Layout 0 ASCII 0 Keyboard 1 Movement Vi Keybinds 0 Fullscreen 2 Font 24/Smallcaps Map View 76x50 Zoom Use 0% Tactical HUD 1 Map Filters NONE Filters NONE Steam 1 RUN: 77232e83-7209-4995-9849-f6c4b4f6584d